fUSD/lending_fUSD_20250530
["ID","MTS","AMOUNT","RATE_DAILY","PERIOD"]
[363214361,1748625051191,-420.0,0.00021917,2]
[363214363,1748625051201,-557.63,0.00021917,2]
[363214365,1748625051211,-420.0,0.00021917,2]
[363214367,1748625051220,-436.7,0.00021917,2]
[363214369,1748625051230,-692.11,0.00021917,2]
[363214371,1748625051240,-420.0,0.00021917,2]
[363214373,1748625051250,-420.0,0.00021917,2]
[363214375,1748625051259,-420.0,0.00021917,2]
[363214377,1748625051269,-420.0,0.00021917,2]
[363214379,1748625051278,-420.0,0.00021917,2]
[363214381,1748625051287,-420.0,0.00021917,2]
[363214383,1748625051297,-420.0,0.00021917,2]
[363214385,1748625051306,-563.37757788,0.00021917,2]
[363214387,1748625051315,-420.0,0.00021917,2]
[363214389,1748625051324,-420.0,0.00021917,2]
[363214391,1748625051333,-640.54,0.00021917,2]
[363214393,1748625051342,-477.7,0.00021917,2]
[363214395,1748625051354,-420.0,0.00021917,2]
[363214397,1748625051363,-420.0,0.00021917,2]
[363214399,1748625051372,-420.0,0.00021917,2]
[363214401,1748625051382,-420.0,0.00021917,2]
[363214403,1748625051391,-420.0,0.00021917,2]
[363214405,1748625051401,-856.5,0.00021917,2]
[363214407,1748625051411,-614.77,0.00021917,2]
[363214409,1748625051422,-420.0,0.00021917,2]
[363214411,1748625051432,-540.0,0.00021917,2]
[363214413,1748625051441,-927.02,0.00021917,2]
[363214415,1748625051450,-1872.63,0.00021917,2]
[363214417,1748625051460,-420.0,0.00021917,2]
[363214419,1748625051469,-420.0,0.00021917,2]
[363214421,1748625051479,-420.0,0.00021917,2]
[363214423,1748625051489,-420.0,0.00021917,2]
[363214425,1748625051498,-420.0,0.00021917,2]
[363214427,1748625051507,-420.0,0.00021917,2]
[363214429,1748625051515,-420.0,0.00021917,2]
[363214431,1748625051524,-420.0,0.00021917,2]
[363214433,1748625051533,-875.19,0.00021917,2]
[363214435,1748625051541,-541.93,0.00021917,2]
[363214437,1748625051550,-420.0,0.00021917,2]
[363214439,1748625051558,-1214.08,0.00021917,2]
[363214441,1748625051567,-445.06,0.00021917,2]
[363214443,1748625051577,-420.0,0.00021917,2]
[363214445,1748625051586,-571.32,0.00021917,2]
[363214447,1748625051596,-1013.99,0.00021917,2]
[363214449,1748625051605,-420.0,0.00021917,2]
[363214451,1748625051615,-420.0,0.00021917,2]
[363214453,1748625051624,-420.0,0.00021917,2]
[363214455,1748625051634,-463.01647017,0.00021917,2]
[363214457,1748625051644,-420.0,0.00021917,2]
[363214459,1748625051653,-421.2217193,0.00021917,2]
[363214461,1748625051662,-420.0,0.00021917,2]
[363214463,1748625051673,-420.0,0.00021917,2]
[363214465,1748625051682,-420.0,0.00021917,2]
[363214467,1748625051692,-420.0,0.00021917,2]
[363214469,1748625051702,-420.0,0.00021917,2]
[363214471,1748625051712,-497.23,0.00021917,2]
[363214473,1748625051721,-420.0,0.00021917,2]
[363214475,1748625051730,-494.69,0.00021917,2]
[363214477,1748625051739,-420.0,0.00021917,2]
[363214479,1748625051748,-467.96,0.00021917,2]
[363214481,1748625051757,-795.33,0.00021917,2]
[363214483,1748625051766,-420.0,0.00021917,2]
[363214485,1748625051774,-420.0,0.00021917,2]
[363214487,1748625051784,-420.0,0.00021917,2]
[363214489,1748625051793,-420.0,0.00021917,2]
[363214491,1748625051802,-420.0,0.00021917,2]
[363214493,1748625051811,-420.0,0.00021917,2]
[363214495,1748625051820,-420.0,0.00021917,2]
[363214497,1748625051828,-420.0,0.00021917,2]
[363214499,1748625051836,-420.0,0.00021917,2]
[363214501,1748625051844,-420.0,0.00021917,2]
[363214503,1748625051853,-420.0,0.00021917,2]
[363214505,1748625051863,-420.0,0.00021917,2]
[363214507,1748625051872,-420.0,0.00021917,2]
[363214509,1748625051882,-420.0,0.00021917,2]
[363214511,1748625051891,-420.0,0.00021917,2]
[363214513,1748625051900,-420.0,0.00021917,2]
[363214515,1748625051910,-599.97,0.00021917,2]
[363214517,1748625051919,-420.0,0.00021917,2]
[363214519,1748625051928,-420.0,0.00021917,2]
[363214521,1748625051939,-420.0,0.00021917,2]
[363214523,1748625051948,-420.0,0.00021917,2]
[363214524,1748625051957,-498.93,0.00021917,2]
[363214526,1748625051967,-1288.47,0.00021917,2]
[363214529,1748625051977,-420.0,0.00021917,2]
[363214530,1748625051988,-207.56075537,0.00021917,2]
[363214575,1748625052496,-292.43924463,0.00021917,2]
[363214577,1748625052507,-500.0,0.00021917,2]
[363214579,1748625052517,-1164.4,0.00021917,2]
[363214581,1748625052526,-420.0,0.00021917,2]
[363214583,1748625052536,-420.0,0.00021917,2]
[363214585,1748625052546,-799.77,0.00021917,2]
[363214587,1748625052555,-420.0,0.00021917,2]
[363214589,1748625052564,-420.0,0.00021917,2]
[363214591,1748625052574,-435.18,0.00021917,2]
[363214593,1748625052583,-420.0,0.00021917,2]
[363214595,1748625052594,-430.39,0.00021917,2]
[363214597,1748625052603,-546.34114829,0.00021917,2]
[363214599,1748625052612,-548.38,0.00021917,2]
[363214601,1748625052622,-420.0,0.00021917,2]
[363214603,1748625052631,-420.0,0.00021917,2]
[363214605,1748625052641,-420.0,0.00021917,2]
[363214607,1748625052650,-420.0,0.00021917,2]
[363214609,1748625052660,-420.0,0.00021917,2]
[363214611,1748625052670,-2311.80662618,0.00021917,2]
[363214613,1748625052682,-9674.45110792,0.00021917,2]
[363214616,1748625052694,-1041.04,0.00021917,2]
[363214618,1748625052706,-20816.0,0.00021917,2]
[363214620,1748625052719,-352.407722,0.00021917,2]
[363214623,1748625052736,-70282.6045439,0.00021917,2]
[363214625,1748625052745,-420.0,0.00021917,2]
[363214627,1748625052754,-420.0,0.00021917,2]
[363214629,1748625052764,-753.25,0.00021917,2]
[363214631,1748625052773,-420.0,0.00021917,2]
[363214633,1748625052783,-420.0,0.00021917,2]
[363214635,1748625052793,-422.32586532,0.00021917,2]
[363214637,1748625052802,-423.86773472,0.00021917,2]
[363214639,1748625052812,-420.0,0.00021917,2]
[363214642,1748625052822,-1398.85,0.00021917,2]
[363214644,1748625052832,-420.41047647,0.00021917,2]
[363214646,1748625052842,-420.0,0.00021917,2]
[363214648,1748625052852,-420.0,0.00021917,2]
[363214650,1748625052863,-420.0,0.00021917,2]
[363214652,1748625052873,-420.0,0.00021917,2]
[363214654,1748625052883,-420.0,0.00021917,2]
[363214656,1748625052893,-3191.18,0.00021917,2]
[363214658,1748625052903,-420.0,0.00021917,2]
[363214660,1748625052912,-420.0,0.00021917,2]
[363214662,1748625052922,-768.86,0.00021917,2]
[363214664,1748625052932,-794.21,0.00021917,2]
[363214666,1748625052942,-420.0,0.00021917,2]
[363214668,1748625052952,-420.0,0.00021917,2]
[363214671,1748625052963,-420.0,0.00021917,2]
[363214673,1748625052973,-660.85,0.00021917,2]
[363214675,1748625052985,-420.0,0.00021917,2]
[363214677,1748625052995,-420.0,0.00021917,2]
[363214679,1748625053005,-420.0,0.00021917,2]
[363214681,1748625053015,-549.9,0.00021917,2]
[363214683,1748625053026,-690.16,0.00021917,2]
[363214685,1748625053036,-871.1,0.00021917,2]
[363214687,1748625053045,-420.0,0.00021917,2]
[363214689,1748625053055,-901.34,0.00021917,2]
[363214691,1748625053065,-818.94,0.00021917,2]
[363214693,1748625053075,-420.0,0.00021917,2]
[363214695,1748625053085,-420.0,0.00021917,2]
[363214697,1748625053095,-420.0,0.00021917,2]
[363214699,1748625053104,-415.94592658,0.00021917,2]
[363214701,1748625053114,-420.0,0.00021917,2]
[363214703,1748625053124,-420.0,0.00021917,2]
[363214705,1748625053134,-420.0,0.00021917,2]
[363214707,1748625053143,-1414.87,0.00021917,2]
[363214710,1748625053154,-1095.22,0.00021917,2]
[363214711,1748625053163,-420.0,0.00021917,2]
[363214713,1748625053174,-420.0,0.00021917,2]
[363214715,1748625053184,-420.0,0.00021917,2]
[363214717,1748625053194,-420.0,0.00021917,2]
[363214719,1748625053203,-420.0,0.00021917,2]
[363214721,1748625053213,-420.0,0.00021917,2]
[363214723,1748625053222,-590.38,0.00021917,2]
[363214725,1748625053232,-1389.99,0.00021917,2]
[363214727,1748625053242,-403.77878697,0.00021917,2]
[363214730,1748625053253,-1126.03,0.00021917,2]
[363214732,1748625053262,-775.7,0.00021917,2]
[363214734,1748625053272,-420.0,0.00021917,2]
[363214736,1748625053283,-776.47,0.00021917,2]
[363214738,1748625053292,-420.0,0.00021917,2]
[363214740,1748625053302,-420.0,0.00021917,2]
[363214742,1748625053311,-420.0,0.00021917,2]
[363214744,1748625053321,-420.0,0.00021917,2]
[363214745,1748625053331,-963.24,0.00021917,2]
[363214746,1748625053340,-420.0,0.00021917,2]
[363214747,1748625053350,-1147.01,0.00021917,2]
[363214748,1748625053361,-420.0,0.00021917,2]
[363214749,1748625053371,-420.0,0.00021917,2]
[363214750,1748625053382,-1797.5,0.00021917,2]
[363214751,1748625053391,-476.26,0.00021917,2]
[363214752,1748625053400,-1010.25,0.00021917,2]
[363214753,1748625053411,-817.49,0.00021917,2]
[363214754,1748625053422,-420.0,0.00021917,2]
[363214755,1748625053432,-420.0,0.00021917,2]
[363214756,1748625053442,-382.46229094,0.00021917,2]
[363214757,1748625053452,-420.0,0.00021917,2]
[363214758,1748625053462,-5000.0,0.00021917,2]
[363214759,1748625053475,-2733.08,0.00021917,2]
[363214760,1748625053485,-597.62,0.00021917,2]
[363214761,1748625053494,-485.03304307,0.00021917,2]
[363214762,1748625053504,-420.0,0.00021917,2]
[363214763,1748625053514,-420.0,0.00021917,2]
[363214765,1748625053524,-420.0,0.00021917,2]
[363214767,1748625053535,-422.30680642,0.00021917,2]
[363214769,1748625053545,-420.0,0.00021917,2]
[363214771,1748625053554,-420.0,0.00021917,2]
[363214773,1748625053564,-420.0,0.00021917,2]
[363214775,1748625053574,-420.0,0.00021917,2]
[363214777,1748625053584,-2968.96,0.00021917,2]
[363214779,1748625053593,-1730.68,0.00021917,2]
[363214781,1748625053603,-420.0,0.00021917,2]
[363214783,1748625053613,-1262.48,0.00021917,2]
[363214785,1748625053623,-420.0,0.00021917,2]
[363214787,1748625053632,-956.8,0.00021917,2]
[363214790,1748625053643,-581.65,0.00021917,2]
[363214792,1748625053652,-420.0,0.00021917,2]
[363214794,1748625053662,-9386.14,0.00021917,2]
[363214796,1748625053673,-420.0,0.00021917,2]
[363214798,1748625053682,-420.0,0.00021917,2]
[363214800,1748625053691,-500.0,0.00021917,2]
[363214802,1748625053701,-420.0,0.00021917,2]
[363214804,1748625053710,-500.0,0.00021917,2]
[363214806,1748625053719,-500.0,0.00021917,2]
[363214808,1748625053729,-477.2,0.00021917,2]
[363214810,1748625053739,-420.0,0.00021917,2]
[363214812,1748625053750,-33963.91,0.00021917,2]
[363214814,1748625053759,-420.0,0.00021917,2]
[363214816,1748625053769,-420.0,0.00021917,2]
[363214818,1748625053779,-1558.08,0.00021917,2]
[363214820,1748625053789,-432.28,0.00021917,2]
[363214822,1748625053798,-420.0,0.00021917,2]
[363214824,1748625053808,-420.0,0.00021917,2]
[363214826,1748625053818,-420.0,0.00021917,2]
[363214828,1748625053827,-501.88318102,0.00021917,2]
[363214830,1748625053837,-500.0,0.00021917,2]
[363214832,1748625053847,-500.0,0.00021917,2]
[363214834,1748625053856,-420.0,0.00021917,2]
[363214836,1748625053866,-500.0,0.00021917,2]
[363214838,1748625053875,-881.65,0.00021917,2]
[363214840,1748625053885,-420.0,0.00021917,2]
[363214843,1748625053895,-420.0,0.00021917,2]
[363214845,1748625053905,-420.0,0.00021917,2]
[363214847,1748625053915,-1583.45,0.00021917,2]
[363214849,1748625053925,-420.0,0.00021917,2]
[363214851,1748625053935,-422.61985501,0.00021917,2]
[363214853,1748625053945,-483.8,0.00021917,2]
[363214855,1748625053954,-420.0,0.00021917,2]
[363214857,1748625053965,-420.0,0.00021917,2]
[363214859,1748625053976,-1568.81,0.00021917,2]
[363214861,1748625053991,-9613.34,0.00021917,2]
[363214863,1748625054001,-426.64367188,0.00021917,2]
[363214865,1748625054012,-481.80673941,0.00021917,2]
[363214867,1748625054022,-420.0,0.00021917,2]
[363214869,1748625054032,-420.0,0.00021917,2]
[363214871,1748625054042,-420.0,0.00021917,2]
[363214873,1748625054052,-420.0,0.00021917,2]
[363214875,1748625054063,-3181.46,0.00021917,2]
[363214877,1748625054072,-630.99,0.00021917,2]
[363214879,1748625054082,-420.0,0.00021917,2]
[363214881,1748625054092,-420.0,0.00021917,2]
[363214883,1748625054102,-717.99,0.00021917,2]
[363214885,1748625054112,-420.0,0.00021917,2]
[363214887,1748625054122,-420.0,0.00021917,2]
[363214889,1748625054132,-1000.0,0.00021917,2]
[363214891,1748625054142,-730.53,0.00021917,2]
[363214893,1748625054152,-420.0,0.00021917,2]
[363214895,1748625054162,-420.0,0.00021917,2]
[363214898,1748625054173,-659.62,0.00021917,2]
[363214900,1748625054183,-1054.14,0.00021917,2]
[363214902,1748625054194,-420.0,0.00021917,2]
[363214904,1748625054204,-420.0,0.00021917,2]
[363214906,1748625054214,-420.0,0.00021917,2]
[363214908,1748625054224,-1814.5,0.00021917,2]
[363214910,1748625054234,-420.0,0.00021917,2]
[363214912,1748625054244,-420.0,0.00021917,2]
[363214914,1748625054255,-3662.03,0.00021917,2]
[363214916,1748625054264,-420.0,0.00021917,2]
[363214918,1748625054274,-530.94,0.00021917,2]
[363214920,1748625054284,-420.0,0.00021917,2]
[363214922,1748625054294,-420.0,0.00021917,2]
[363214924,1748625054303,-4593.81,0.00021917,2]
[363214926,1748625054312,-1229.35,0.00021917,2]
[363214928,1748625054322,-2333.71,0.00021917,2]
[363214930,1748625054332,-420.0,0.00021917,2]
[363214932,1748625054342,-420.0,0.00021917,2]
[363214934,1748625054353,-2000.0,0.00021917,2]
[363214936,1748625054363,-1191.89,0.00021917,2]
[363214938,1748625054372,-420.0,0.00021917,2]
[363214940,1748625054383,-420.0,0.00021917,2]
[363214942,1748625054392,-500.0,0.00021917,2]
[363214944,1748625054402,-739.79,0.00021917,2]
[363214947,1748625054411,-420.0,0.00021917,2]
[363214948,1748625054421,-420.0,0.00021917,2]
[363214950,1748625054431,-420.0,0.00021917,2]
[363214951,1748625054440,-420.0,0.00021917,2]
[363214952,1748625054450,-420.0,0.00021917,2]
[363214953,1748625054460,-213.6939653,0.00021917,2]
[363214954,1748625054469,-420.0,0.00021917,2]
[363214955,1748625054479,-1346.03,0.00021917,2]
[363214956,1748625054489,-420.0,0.00021917,2]
[363214957,1748625054499,-426.64645943,0.00021917,2]
[363214958,1748625054508,-420.0,0.00021917,2]
[363214959,1748625054517,-742.32,0.00021917,2]
[363214960,1748625054527,-1349.82,0.00021917,2]
[363214962,1748625054537,-484.2,0.00021917,2]
[363214964,1748625054546,-420.0,0.00021917,2]
[363214966,1748625054556,-420.0,0.00021917,2]
[363214997,1748625054849,-721.76,0.00021917,2]
[363214999,1748625054858,-808.4,0.00021917,2]
[363215001,1748625054867,-547.39,0.00021917,2]
[363215003,1748625054877,-3643.3,0.00021917,2]
[363215005,1748625054886,-435.99,0.00021917,2]
[363215007,1748625054896,-420.0,0.00021917,2]
[363215009,1748625054907,-3224.59,0.00021917,2]
[363215011,1748625054917,-717.83,0.00021917,2]
[363215013,1748625054929,-1989.94,0.00021917,2]
[363215015,1748625054939,-420.0,0.00021917,2]
[363215017,1748625054948,-433.84,0.00021917,2]
[363215019,1748625054958,-420.0,0.00021917,2]
[363215022,1748625054968,-420.0,0.00021917,2]
[363215024,1748625054980,-420.0,0.00021917,2]
[363215026,1748625054992,-420.0,0.00021917,2]
[363215028,1748625055001,-798.94,0.00021917,2]
[363215030,1748625055012,-420.0,0.00021917,2]
[363215031,1748625055022,-420.0,0.00021917,2]
[363215033,1748625055031,-420.0,0.00021917,2]
[363215035,1748625055041,-484.4,0.00021917,2]
[363215037,1748625055051,-508.77,0.00021917,2]
[363215039,1748625055061,-420.0,0.00021917,2]
[363215041,1748625055073,-561.24,0.00021917,2]
[363215043,1748625055083,-420.0,0.00021917,2]
[363215045,1748625055093,-423.52873376,0.00021917,2]
[363215046,1748625055102,-1032.75,0.00021917,2]
[363215047,1748625055113,-420.0,0.00021917,2]
[363215048,1748625055122,-221.34925239,0.00021917,2]
[363215049,1748625055133,-420.0,0.00021917,2]
[363215050,1748625055142,-1425.59,0.00021917,2]
[363215051,1748625055152,-1428.96,0.00021917,2]
[363215052,1748625055161,-2060.88,0.00021917,2]
[363215053,1748625055171,-480.78,0.00021917,2]
[363215054,1748625055181,-532.18,0.00021917,2]
[363215055,1748625055191,-420.0,0.00021917,2]
[363215056,1748625055201,-420.0,0.00021917,2]
[363215057,1748625055211,-11760.79,0.00021917,2]
[363215058,1748625055221,-420.0,0.00021917,2]
[363215060,1748625055231,-1234.14,0.00021917,2]
[363215062,1748625055241,-319.11246098,0.00021917,2]
[363215064,1748625055251,-6655.62,0.00021917,2]
[363215066,1748625055261,-420.0,0.00021917,2]
[363215068,1748625055271,-420.0,0.00021917,2]
[363215070,1748625055281,-6718.87,0.00021917,2]
[363215071,1748625055291,-420.0,0.00021917,2]
[363215072,1748625055301,-420.0,0.00021917,2]
[363215073,1748625055311,-420.0,0.00021917,2]
[363215074,1748625055321,-420.0,0.00021917,2]
[363215075,1748625055331,-1302.98,0.00021917,2]
[363215076,1748625055341,-420.0,0.00021917,2]
[363215077,1748625055351,-5897.25,0.00021917,2]
[363215078,1748625055362,-702.84,0.00021917,2]
[363215079,1748625055372,-748.73,0.00021917,2]
[363215080,1748625055383,-525.75,0.00021917,2]
[363215081,1748625055393,-420.0,0.00021917,2]
[363215082,1748625055403,-336.52426016,0.00021917,2]
[363215083,1748625055414,-834.52,0.00021917,2]
[363215084,1748625055425,-1451.73,0.00021917,2]
[363215085,1748625055435,-2081.1,0.00021917,2]
[363215086,1748625055445,-420.0,0.00021917,2]
[363215087,1748625055455,-420.0,0.00021917,2]
[363215088,1748625055465,-975.32,0.00021917,2]
[363215089,1748625055475,-420.0,0.00021917,2]
[363215090,1748625055486,-420.0,0.00021917,2]
[363215091,1748625055495,-1014.54,0.00021917,2]
[363215092,1748625055505,-420.0,0.00021917,2]
[363215093,1748625055515,-420.0,0.00021917,2]
[363215094,1748625055525,-2507.34,0.00021917,2]
[363215095,1748625055535,-2482.04,0.00021917,2]
[363215096,1748625055546,-420.0,0.00021917,2]
[363215097,1748625055557,-420.0,0.00021917,2]
[363215098,1748625055566,-536.15,0.00021917,2]
[363215099,1748625055576,-1555.8,0.00021917,2]
[363215100,1748625055586,-420.0,0.00021917,2]
[363215101,1748625055596,-1117.07,0.00021917,2]
[363215102,1748625055606,-1497.32,0.00021917,2]
[363215103,1748625055615,-420.0,0.00021917,2]
[363215104,1748625055624,-1690.12,0.00021917,2]
[363215105,1748625055634,-420.0,0.00021917,2]
[363215106,1748625055644,-607.4,0.00021917,2]
[363215107,1748625055654,-1107.9,0.00021917,2]
[363215108,1748625055664,-891.1,0.00021917,2]
[363215109,1748625055674,-779.44,0.00021917,2]
[363215110,1748625055684,-420.0,0.00021917,2]
[363215111,1748625055694,-420.0,0.00021917,2]
[363215112,1748625055704,-420.0,0.00021917,2]
[363215113,1748625055714,-424.62935601,0.00021917,2]
[363215114,1748625055723,-868.62,0.00021917,2]
[363215115,1748625055733,-420.0,0.00021917,2]
[363215116,1748625055745,-1255.0,0.00021917,2]
[363215117,1748625055754,-1048.64,0.00021917,2]
[363215118,1748625055764,-1227.38,0.00021917,2]
[363215119,1748625055774,-485.12,0.00021917,2]
[363215120,1748625055785,-609.79,0.00021917,2]
[363215121,1748625055794,-3760.55,0.00021917,2]
[363215122,1748625055803,-420.0,0.00021917,2]
[363215123,1748625055814,-534.51,0.00021917,2]
[363215124,1748625055824,-420.0,0.00021917,2]
[363215125,1748625055834,-572.34,0.00021917,2]
[363215126,1748625055844,-420.0,0.00021917,2]
[363215127,1748625055854,-539.47786715,0.00021917,2]
[363215128,1748625055864,-579.66,0.00021917,2]
[363215129,1748625055873,-420.0,0.00021917,2]
[363215130,1748625055883,-1297.24,0.00021917,2]
[363215131,1748625055893,-420.0,0.00021917,2]
[363215132,1748625055903,-947.19,0.00021917,2]
[363215133,1748625055914,-420.0,0.00021917,2]
[363215134,1748625055925,-830.24,0.00021917,2]
[363215135,1748625055935,-2532.42,0.00021917,2]
[363215136,1748625055945,-424.27994911,0.00021917,2]
[363215137,1748625055954,-420.0,0.00021917,2]
[363215138,1748625055964,-3481.82,0.00021917,2]
[363215139,1748625055974,-420.0,0.00021917,2]
[363215140,1748625055985,-1148.09,0.00021917,2]
[363215141,1748625055995,-2017.92,0.00021917,2]
[363215142,1748625056005,-420.0,0.00021917,2]
[363215143,1748625056015,-420.0,0.00021917,2]
[363215144,1748625056026,-420.0,0.00021917,2]
[363215145,1748625056036,-532.61,0.00021917,2]
[363215146,1748625056045,-486.99,0.00021917,2]
[363215147,1748625056055,-695.74,0.00021917,2]
[363215148,1748625056067,-420.0,0.00021917,2]
[363215149,1748625056077,-420.0,0.00021917,2]
[363215150,1748625056086,-4390.11,0.00021917,2]
[363215151,1748625056096,-1109.71,0.00021917,2]
[363215152,1748625056106,-420.0,0.00021917,2]
[363215153,1748625056116,-420.0,0.00021917,2]
[363215154,1748625056126,-420.0,0.00021917,2]
[363215155,1748625056135,-420.0,0.00021917,2]
[363215156,1748625056146,-420.0,0.00021917,2]
[363215157,1748625056156,-420.0,0.00021917,2]
[363215158,1748625056166,-825.98,0.00021917,2]
[363215159,1748625056177,-3251.12,0.00021917,2]
[363215160,1748625056187,-420.0,0.00021917,2]
[363215161,1748625056197,-420.0,0.00021917,2]
[363215162,1748625056207,-595.62,0.00021917,2]
[363215163,1748625056217,-1231.67,0.00021917,2]
[363215164,1748625056226,-425.42709595,0.00021917,2]
[363215165,1748625056236,-1617.52,0.00021917,2]
[363215166,1748625056246,-3413.16,0.00021917,2]
[363215167,1748625056256,-590.82,0.00021917,2]
[363215168,1748625056265,-1701.89,0.00021917,2]
[363215169,1748625056275,-420.0,0.00021917,2]
[363215170,1748625056284,-420.0,0.00021917,2]
[363215171,1748625056293,-420.0,0.00021917,2]
[363215172,1748625056304,-1388.92,0.00021917,2]
[363215173,1748625056314,-420.0,0.00021917,2]
[363215174,1748625056327,-420.0,0.00021917,2]
[363215175,1748625056338,-3455.54,0.00021917,2]
[363215176,1748625056349,-420.0,0.00021917,2]
[363215177,1748625056361,-420.0,0.00021917,2]
[363215178,1748625056371,-420.0,0.00021917,2]
[363215179,1748625056382,-757.89,0.00021917,2]
[363215180,1748625056392,-420.0,0.00021917,2]
[363215181,1748625056402,-420.0,0.00021917,2]
[363215182,1748625056412,-2483.89,0.00021917,2]
[363215183,1748625056426,-420.0,0.00021917,2]
[363215184,1748625056438,-420.0,0.00021917,2]
[363215185,1748625056451,-4931.63,0.00021917,2]
[363215186,1748625056463,-420.0,0.00021917,2]
[363215187,1748625056474,-1929.8,0.00021917,2]
[363215188,1748625056486,-836.79,0.00021917,2]
[363215189,1748625056497,-420.0,0.00021917,2]
[363215190,1748625056508,-1311.61,0.00021917,2]
[363215191,1748625056518,-1048.99,0.00021917,2]
[363215192,1748625056530,-563.9,0.00021917,2]
[363215193,1748625056541,-2451.3,0.00021917,2]
[363215194,1748625056552,-2508.76,0.00021917,2]
[363215195,1748625056562,-425.60304513,0.00021917,2]
[363215196,1748625056573,-420.0,0.00021917,2]
[363215197,1748625056583,-420.0,0.00021917,2]
[363215198,1748625056594,-420.0,0.00021917,2]
[363215199,1748625056605,-420.0,0.00021917,2]
[363215200,1748625056615,-420.0,0.00021917,2]
[363215201,1748625056627,-420.0,0.00021917,2]
[363215202,1748625056637,-3090.09,0.00021917,2]
[363215203,1748625056647,-624.81,0.00021917,2]
[363215204,1748625056657,-448.68,0.00021917,2]
[363215205,1748625056668,-813.27,0.00021917,2]
[363215206,1748625056685,-420.0,0.00021917,2]
[363215207,1748625056695,-420.0,0.00021917,2]
[363215208,1748625056706,-849.34,0.00021917,2]
[363215209,1748625056717,-420.0,0.00021917,2]
[363215210,1748625056729,-1579.54,0.00021917,2]
[363215211,1748625056739,-420.0,0.00021917,2]
[363215212,1748625056752,-420.0,0.00021917,2]
[363215213,1748625056763,-420.0,0.00021917,2]
[363215214,1748625056774,-420.0,0.00021917,2]
[363215215,1748625056785,-420.0,0.00021917,2]
[363215216,1748625056796,-420.0,0.00021917,2]
[363215217,1748625056807,-420.0,0.00021917,2]
[363215218,1748625056818,-420.0,0.00021917,2]
[363215219,1748625056832,-1060.66,0.00021917,2]
[363215220,1748625056842,-420.0,0.00021917,2]
[363215221,1748625056854,-420.0,0.00021917,2]
[363215222,1748625056865,-420.0,0.00021917,2]
[363215223,1748625056876,-420.0,0.00021917,2]
[363215224,1748625056887,-609.36,0.00021917,2]
[363215225,1748625056897,-420.0,0.00021917,2]
[363215226,1748625056907,-456.51,0.00021917,2]
[363215227,1748625056917,-9524.77,0.00021917,2]
[363215228,1748625056931,-529.41,0.00021917,2]
[363215229,1748625056941,-420.0,0.00021917,2]
[363215230,1748625056950,-420.0,0.00021917,2]
[363215231,1748625056961,-411.90498392,0.00021917,2]
[363215232,1748625056972,-420.0,0.00021917,2]
[363215233,1748625056986,-420.0,0.00021917,2]